bitfinex-derivatives/quotes_BTCF0:USTF0_20250809
["timestamp","ask_amount","ask_price","bid_price","bid_amount"]
[1754715565548,0.31587562,116560.0,116550.0,0.564345]
[1754715566650,0.23009812,116560.0,116550.0,0.564345]
[1754715579954,0.23009812,116560.0,116550.0,0.203545]
[1754715580161,0.23009812,116560.0,116550.0,0.564345]
[1754715588166,0.23009812,116560.0,116550.0,1.362425]
[1754715589070,0.23009812,116560.0,116550.0,1.362345]
[1754715589569,0.21519812,116560.0,116550.0,1.362345]
[1754715589770,0.11257812,116560.0,116550.0,1.362345]
[1754715599386,0.11257812,116560.0,116550.0,0.564345]
[1754715599586,0.17148812,116560.0,116550.0,1.362025]
[1754715599782,0.20991812,116560.0,116550.0,1.362025]
[1754715600687,0.19541812,116560.0,116550.0,1.362025]
[1754715601991,0.21693767,116560.0,116550.0,1.362025]
[1754715603089,0.23143767,116560.0,116550.0,1.362025]
[1754715603291,0.25475767,116560.0,116550.0,1.362025]
[1754715604391,0.34053527,116560.0,116550.0,1.362025]
[1754715605694,0.25475767,116560.0,116550.0,1.362025]
[1754715605888,0.34053527,116560.0,116550.0,1.362025]
[1754715607594,0.25475767,116560.0,116550.0,1.362025]
[1754715607995,0.34053517,116560.0,116550.0,1.362025]
[1754715610196,0.34053517,116560.0,116550.0,0.564345]
[1754715610496,0.34053517,116560.0,116550.0,1.361585]
[1754715611492,0.26797517,116560.0,116550.0,0.564345]
[1754715611692,0.43365411,116560.0,116550.0,0.206725]
[1754715619204,0.43365411,116560.0,116550.0,0.086785]
[1754715619399,0.43365411,116560.0,116550.0,0.134335]
[1754715619601,0.43365411,116560.0,116550.0,0.206965]
[1754715620500,0.43365411,116560.0,116550.0,0.1343349]
[1754715620701,0.79445411,116560.0,116550.0,0.0867849]
[1754715624205,0.79445411,116560.0,116550.0,0.1450149]
[1754715625304,0.79445411,116560.0,116550.0,0.0867849]
[1754715628208,0.79445411,116560.0,116550.0,0.1450149]
[1754715629009,0.79445411,116560.0,116550.0,0.0867849]
[1754715630305,0.79445411,116560.0,116550.0,0.0867848]
[1754715631911,0.79445411,116560.0,116550.0,0.001]
[1754715632812,0.79445411,116560.0,116550.0,0.0867849]
[1754715633913,0.79445411,116560.0,116550.0,0.001]
[1754715635614,0.79445411,116560.0,116550.0,0.0867848]
[1754715648420,0.1324648,116550.0,116540.0,0.343155]
[1754715648626,1.02246435,116550.0,116540.0,0.446965]
[1754715648826,1.12157606,116550.0,116540.0,0.460795]
[1754715649027,1.20737246,116550.0,116540.0,0.460795]
[1754715650126,1.20837246,116550.0,116540.0,0.460795]
[1754715679366,1.12258766,116550.0,116540.0,0.460795]
[1754715679568,1.20837256,116550.0,116540.0,0.460795]
[1754715680966,0.20742766,116550.0,116540.0,0.460795]
[1754715681167,1.00318766,116550.0,116540.0,0.821595]
[1754715682267,1.07407766,116550.0,116540.0,0.821595]
[1754715685867,1.05255811,116550.0,116540.0,0.821595]
[1754715687067,1.0023864,116550.0,116540.0,0.821595]
[1754715687661,0.2066264,116550.0,116540.0,0.821595]
[1754715687861,0.1917864,116550.0,116540.0,0.821595]
[1754715688064,0.1443964,116550.0,116540.0,0.821595]
[1754715688465,0.0867964,116550.0,116540.0,0.821595]
[1754715691970,0.10834197,116550.0,116540.0,0.821595]
[1754715693571,0.0867964,116550.0,116540.0,0.821595]
[1754715693771,0.10834239,116550.0,116540.0,0.821595]
[1754715694172,0.001,116550.0,116540.0,0.821595]
[1754715704479,0.001,116550.0,116540.0,1.293203]
[1754715704677,0.15591476,116570.0,116560.0,0.2049375]
[1754715704876,0.15591476,116570.0,116560.0,1.3608175]
[1754715705076,0.24171852,116570.0,116560.0,1.3608175]
[1754715706184,0.15594842,116570.0,116560.0,1.3608175]
[1754715706579,0.15994842,116570.0,116560.0,1.3608175]
[1754715731693,0.004,116570.0,116560.0,1.3608175]
[1754715733201,0.03079025,116580.0,116560.0,1.5323679]
[1754715733400,0.07075,116590.0,116580.0,0.0857628]
[1754715733701,0.22989736,116590.0,116580.0,1.3606028]
[1754715734700,0.23089736,116590.0,116580.0,1.3606028]
[1754715735704,0.26115159,116590.0,116580.0,1.3606028]
[1754715735905,0.23970327,116590.0,116580.0,1.3606028]
[1754715736399,0.16895327,116590.0,116580.0,1.3606028]
[1754715736599,0.14617327,116590.0,116580.0,1.3606028]
[1754715736904,0.12114327,116590.0,116580.0,1.3606028]
[1754715738101,0.0051,116590.0,116580.0,1.3606028]
[1754715739004,0.42815169,116630.0,116620.0,0.0857333]
[1754715739205,0.30735338,116630.0,116620.0,0.18477167]
[1754715739405,0.20735338,116630.0,116620.0,0.18477167]
[1754715739702,0.32413804,116630.0,116620.0,0.18477167]
[1754715740307,0.40986394,116630.0,116620.0,0.06513167]
[1754715740507,1.29891325,116630.0,116620.0,0.06513167]
[1754715740705,1.67391325,116630.0,116620.0,0.06513167]
[1754715742508,1.30891325,116630.0,116620.0,0.06513167]
[1754715744406,1.31281325,116630.0,116620.0,0.06513167]
[1754715744910,1.67361325,116630.0,116620.0,0.06513167]
[1754715745109,1.31281325,116630.0,116620.0,0.06513167]
[1754715745407,1.67361325,116630.0,116620.0,0.06513167]
[1754715750818,1.67361325,116630.0,116620.0,0.18477167]
[1754715751020,0.42376394,116630.0,116620.0,0.18477167]
[1754715755225,0.40232225,116630.0,116620.0,0.18477167]
[1754715755421,0.42371202,116630.0,116620.0,0.18477167]
[1754715756524,0.42371202,116630.0,116620.0,0.06513167]
[1754715757422,0.78451202,116630.0,116620.0,0.06513167]
[1754715757626,0.42371202,116630.0,116620.0,0.06513167]
[1754715757920,0.88147366,116630.0,116620.0,0.06513167]
[1754715758127,0.52067366,116630.0,116620.0,0.06513167]
[1754715758724,0.88147366,116630.0,116620.0,0.06513167]
[1754715760525,0.52067366,116630.0,116620.0,0.06513167]
[1754715760721,0.88147366,116630.0,116620.0,0.06513167]
[1754715761123,0.52067366,116630.0,116620.0,0.06513167]
[1754715761326,0.52067366,116630.0,116620.0,0.04453218]
[1754715761527,0.88147366,116630.0,116620.0,0.04453218]
[1754715763624,0.1551433,116620.0,116610.0,0.2572094]
[1754715763831,1.01746307,116620.0,116610.0,0.2572094]
[1754715764031,1.11258535,116620.0,116610.0,0.2572094]
[1754715764234,1.19833025,116620.0,116610.0,0.2572094]
[1754715764831,1.20133025,116620.0,116610.0,0.2572094]
[1754715765131,1.20533025,116620.0,116610.0,0.2572094]
[1754715769937,1.20533025,116620.0,116610.0,0.3052594]
[1754715769938,0.41153025,116620.0,116610.0,0.3052594]
[1754715770138,1.20529025,116620.0,116610.0,0.3785694]
[1754715771039,1.20529025,116620.0,116610.0,0.7393694]
[1754715771440,1.20529025,116620.0,116610.0,0.3785694]
[1754715772343,1.20529025,116620.0,116610.0,0.7393694]
[1754715773339,1.20529025,116620.0,116610.0,0.3785694]
[1754715775251,1.20529025,116620.0,116610.0,0.7393694]
[1754715775747,1.20529025,116620.0,116610.0,0.3785694]
[1754715778953,1.20529025,116620.0,116610.0,0.7393694]
[1754715784156,0.41153025,116620.0,116610.0,0.7393694]
[1754715790063,0.31640797,116620.0,116610.0,0.7393694]
[1754715793766,0.19986797,116620.0,116610.0,0.7393694]
[1754715794264,0.22450797,116620.0,116610.0,0.7393694]
[1754715794661,0.25042797,116620.0,116610.0,0.7393694]
[1754715795067,0.28341797,116620.0,116610.0,0.7393694]
[1754715795367,0.29836797,116620.0,116610.0,0.7393694]
[1754715795664,0.19986797,116620.0,116610.0,0.7393694]
[1754715796069,0.28341797,116620.0,116610.0,0.7393694]
[1754715796568,0.29836797,116620.0,116610.0,0.7393694]
[1754715797069,0.22578797,116620.0,116610.0,0.7393694]
[1754715798169,0.19986797,116620.0,116610.0,0.7393694]
[1754715798368,0.11413467,116620.0,116610.0,0.7393694]
[1754715798671,0.19986797,116620.0,116610.0,0.7393694]
[1754715798866,0.11413467,116620.0,116610.0,0.7393694]
[1754715800567,0.19986797,116620.0,116610.0,0.7393694]
[1754715800766,0.13877467,116620.0,116610.0,0.7393694]
[1754715804169,0.16469467,116620.0,116610.0,0.7393694]
[1754715804874,0.11413467,116620.0,116610.0,0.7393694]
[1754715805371,0.13877467,116620.0,116610.0,0.7393694]
[1754715806771,0.16312467,116620.0,116610.0,0.7393694]
[1754715806975,0.23570467,116620.0,116610.0,0.7393694]
[1754715812672,0.32143797,116620.0,116610.0,0.7393694]
[1754715815180,0.23570467,116620.0,116610.0,0.7393694]
[1754715816381,0.32143797,116620.0,116610.0,0.7393694]
[1754715820384,0.23570467,116620.0,116610.0,0.7393694]
[1754715820790,0.32143797,116620.0,116610.0,0.7393694]
[1754715827292,0.14005467,116620.0,116610.0,0.7393694]
[1754715827690,0.11413467,116620.0,116610.0,0.7393694]
[1754715831695,0.19986797,116620.0,116610.0,0.7393694]
[1754715832999,0.11413467,116620.0,116610.0,0.7393694]
[1754715833598,0.11413467,116620.0,116610.0,1.5330094]
[1754715834298,0.19986797,116620.0,116610.0,1.5330094]
[1754715835594,0.11413467,116620.0,116610.0,1.5330094]
[1754715842407,0.0927449,116620.0,116610.0,1.5330094]
[1754715851715,0.0897449,116620.0,116610.0,1.5330094]
[1754715851912,0.0907449,116620.0,116610.0,1.5330094]
[1754715852318,0.0867449,116620.0,116610.0,1.5330094]
[1754715852518,0.0887449,116620.0,116610.0,1.5330094]
[1754715854920,0.003,116620.0,116610.0,1.5330094]
[1754715857415,0.003,116620.0,116610.0,1.8938094]
[1754715868222,0.06735169,116630.0,116620.0,0.1483533]
[1754715868419,0.05243,116640.0,116630.0,0.207346]
[1754715868624,0.09823,116640.0,116630.0,1.361386]
[1754715868917,0.1839749,116640.0,116630.0,1.361386]
[1754715869526,0.1879749,116640.0,116630.0,1.361386]
[1754715870130,0.2096349,116640.0,116630.0,1.361386]
[1754715870928,0.24567938,116640.0,116630.0,1.361386]
[1754715871323,0.31849393,116640.0,116630.0,1.361386]
[1754715871926,0.31549393,116640.0,116630.0,1.361386]
[1754715872126,0.33493726,116640.0,116630.0,1.361386]
[1754715874129,0.29896393,116640.0,116630.0,1.361386]
[1754715874329,0.19640393,116640.0,116630.0,1.361386]
[1754715874630,0.0048,116640.0,116630.0,1.361386]
[1754715875134,0.03560472,116650.0,116630.0,1.5328339]
[1754715875333,0.4714414,116670.0,116660.0,0.1852139]
[1754715875536,0.13851783,116670.0,116660.0,0.5681239]
[1754715875729,0.22825538,116670.0,116660.0,0.5681239]
[1754715876239,0.31395198,116670.0,116660.0,0.5681239]
[1754715877433,0.31895198,116670.0,116660.0,0.5681239]
[1754715877836,0.32195198,116670.0,116660.0,0.5681239]
[1754715879037,0.23625538,116670.0,116660.0,0.5681239]
[1754715879227,0.35778351,116670.0,116660.0,0.5681239]
[1754715880637,0.33895618,116670.0,116660.0,0.5681239]
[1754715882237,0.31652835,116670.0,116660.0,0.5681239]
[1754715884633,0.26470835,116670.0,116660.0,0.5681239]
[1754715884931,0.5229824,116670.0,116660.0,0.1175139]
[1754715885333,0.5229824,116670.0,116660.0,0.1647839]
[1754715885639,0.5229824,116670.0,116660.0,0.2020739]
[1754715885835,0.4278965,116670.0,116660.0,0.5628739]
[1754715886237,0.40566485,116670.0,116660.0,0.5628739]
[1754715886837,0.20043835,116670.0,116660.0,0.5628739]
[1754715888036,0.09773755,116670.0,116660.0,0.5628739]
[1754715888939,0.09273755,116670.0,116660.0,0.5628739]
[1754715889135,0.4952553,116700.0,116690.0,0.1337719]
[1754715889438,0.4952553,116700.0,116680.0,0.2570578]
[1754715889439,0.1344697,116680.0,116670.0,0.6659725]
[1754715889637,0.18110841,116680.0,116670.0,0.7353925]
[1754715889836,0.23215841,116680.0,116670.0,0.3745925]
[1754715890145,0.31786657,116680.0,116670.0,0.3745925]
[1754715891043,0.31986657,116680.0,116670.0,0.3745925]
[1754715891643,0.35539314,116680.0,116670.0,0.3745925]
[1754715892147,0.33317443,116680.0,116670.0,0.7353925]
[1754715892844,0.33317443,116680.0,116670.0,0.649698]
[1754715893550,0.24748473,116680.0,116670.0,0.651698]
[1754715894046,0.24328473,116680.0,116670.0,0.651698]
[1754715894242,0.32897443,116680.0,116670.0,0.290898]
[1754715894845,0.32697443,116680.0,116670.0,0.290898]
[1754715895151,0.32697443,116680.0,116670.0,0.291898]
[1754715895348,0.24128473,116680.0,116670.0,0.652698]
[1754715898446,0.26352523,116680.0,116670.0,0.652698]
[1754715899242,0.26772523,116680.0,116670.0,0.652698]
[1754715900053,0.24548473,116680.0,116670.0,0.652698]
[1754715900248,0.35342132,116680.0,116670.0,0.652698]
[1754715900649,0.35342132,116680.0,116670.0,0.583278]
[1754715900852,0.44474055,116680.0,116670.0,0.222478]
[1754715901151,0.80554055,116680.0,116670.0,0.222478]
[1754715902053,0.80134055,116680.0,116670.0,0.174388]
[1754715902848,0.80134055,116680.0,116670.0,0.003]
[1754715903048,0.80134055,116680.0,116670.0,0.0886975]
[1754715903251,0.80134055,116680.0,116670.0,0.06810651]
[1754715903757,0.1344775,116670.0,116660.0,0.1714049]
[1754715903945,0.22799439,116670.0,116660.0,0.1714049]
[1754715904453,0.31370255,116670.0,116660.0,0.1714049]
[1754715904951,0.41064505,116670.0,116660.0,0.1714049]
[1754715905358,0.41064505,116670.0,116660.0,0.2035349]
[1754715905556,0.41064505,116670.0,116660.0,0.2364849]
[1754715906158,0.41064505,116670.0,116660.0,0.2516249]
[1754715906461,0.41064505,116670.0,116660.0,0.2891449]
[1754715907552,0.41064505,116670.0,116660.0,0.2194949]
[1754715907956,0.41064505,116670.0,116660.0,0.1714049]
[1754715910456,0.41064505,116670.0,116660.0,0.2048649]
[1754715911562,0.77144505,116670.0,116660.0,0.1714049]
[1754715911862,1.84207705,116670.0,116660.0,0.085701]
[1754715912457,0.0857048,116660.0,116650.0,0.3428335]
[1754715912662,0.22590169,116660.0,116650.0,0.3428335]
[1754715912863,0.32428797,116660.0,116650.0,0.3428335]
[1754715913163,0.41001082,116660.0,116650.0,0.3762935]
[1754715913557,0.41001082,116660.0,116650.0,0.3224241]
[1754715913956,0.41101082,116660.0,116650.0,0.3224241]
[1754715914371,0.41101082,116660.0,116650.0,0.2571241]
[1754715914561,0.58245882,116660.0,116650.0,0.0857079]
[1754715914768,0.2036622,116650.0,116640.0,0.3613895]
[1754715915066,0.31678931,116650.0,116640.0,0.3613895]
[1754715915265,0.40251216,116650.0,116640.0,0.3613895]
[1754715915658,0.40251216,116650.0,116640.0,0.3755995]
[1754715916359,0.40251216,116650.0,116640.0,0.3765995]
[1754715916960,0.40251216,116650.0,116640.0,0.3775995]
[1754715917256,0.38026527,116650.0,116640.0,0.3765995]
[1754715917465,0.38126527,116650.0,116640.0,0.3765995]
[1754715917966,0.38126527,116650.0,116640.0,0.3755995]
[1754715918365,0.74206527,116650.0,116640.0,0.3755995]
[1754715920163,0.38126527,116650.0,116640.0,0.3755995]
[1754715920767,1.00428815,116650.0,116640.0,0.3613895]
[1754715920968,1.00428815,116650.0,116640.0,0.3380795]
[1754715921163,1.91248815,116650.0,116640.0,0.3755995]
[1754715921368,1.28946527,116650.0,116640.0,0.3755995]
[1754715921669,1.91248815,116650.0,116640.0,0.3755995]
[1754715922069,1.55168815,116650.0,116640.0,0.3755995]
[1754715922363,1.5735106,116650.0,116640.0,0.3755995]
[1754715922864,0.31737552,116650.0,116640.0,0.63782238]
[1754715923070,0.40308772,116650.0,116640.0,0.63782238]
[1754715923266,0.40308772,116650.0,116640.0,0.3755995]
[1754715923466,0.31737552,116650.0,116640.0,0.3755995]
[1754715923666,0.40308772,116650.0,116640.0,0.3755995]
[1754715923867,0.40308772,116650.0,116640.0,0.63782238]
[1754715924963,0.40308772,116650.0,116640.0,0.63882238]
[1754715925165,0.40308772,116650.0,116640.0,0.3765995]
[1754715925365,0.40208772,116650.0,116640.0,0.63882238]
[1754715925666,0.40208772,116650.0,116640.0,0.63982238]
[1754715925867,0.31637552,116650.0,116640.0,0.3775995]
[1754715927966,0.31637552,116650.0,116640.0,0.63982238]
[1754715928161,0.31637552,116650.0,116640.0,0.3775995]
[1754715928975,0.1075453,116650.0,116640.0,1.00062238]
[1754715929273,0.10756374,116650.0,116640.0,1.00062238]
[1754715930074,0.10756374,116650.0,116640.0,0.7383995]
[1754715930264,0.08572285,116650.0,116640.0,1.00062238]
[1754715930668,0.08572285,116650.0,116640.0,0.7383995]
[1754715930871,0.08572285,116650.0,116640.0,1.00062238]
[1754715931473,0.10757496,116650.0,116640.0,1.00062238]
[1754715931672,0.10757496,116650.0,116640.0,0.7383995]
[1754715931976,0.10757496,116650.0,116640.0,1.00062238]
[1754715932269,0.08572285,116650.0,116640.0,0.7383995]
[1754715932463,0.08572285,116650.0,116640.0,1.93066238]
[1754715933773,0.08572285,116650.0,116640.0,1.6684395]
[1754715934272,0.08572285,116650.0,116640.0,1.93066238]
[1754715934573,0.08572285,116650.0,116640.0,1.6684395]
[1754715934874,0.08572285,116650.0,116640.0,1.93066238]
[1754715935370,0.06308735,116650.0,116640.0,1.6684395]
[1754715935572,0.0044,116660.0,116650.0,0.1331822]
[1754715935763,0.0044,116660.0,116650.0,0.82718508]
[1754715935963,0.0901302,116660.0,116650.0,0.5649622]
[1754715936374,0.0901302,116660.0,116650.0,0.82718508]
[1754715937274,0.0911302,116660.0,116650.0,0.82718508]
[1754715937675,0.0911302,116660.0,116650.0,0.5649622]
[1754715937868,0.0911302,116660.0,116650.0,0.82718508]
[1754715938174,0.0911302,116660.0,116650.0,0.5659622]
[1754715938371,0.0901302,116660.0,116650.0,0.83018508]
[1754715939074,0.0901302,116660.0,116650.0,0.5679622]
[1754715939276,0.0901302,116660.0,116650.0,0.83018508]
[1754715939769,0.0901302,116660.0,116650.0,0.82918508]
[1754715939975,0.0901302,116660.0,116650.0,0.83118508]
[1754715940364,0.0901302,116660.0,116650.0,0.5689622]
[1754715941071,0.0901302,116660.0,116650.0,0.83118508]
[1754715941474,0.0901302,116660.0,116650.0,0.5689622]
[1754715941872,0.1149402,116660.0,116650.0,0.83118508]
[1754715942069,0.1746802,116660.0,116650.0,0.5689622]
[1754715942272,0.0901302,116660.0,116650.0,0.5689622]
[1754715942582,0.0901302,116660.0,116650.0,0.83118508]
[1754715943473,0.0901302,116660.0,116650.0,0.5689622]
[1754715943774,0.0044,116660.0,116650.0,0.5689622]
[1754715943976,0.03552657,116680.0,116670.0,0.204389]
[1754715944177,0.43341,116690.0,116670.0,0.290088]
[1754715944472,0.58871452,116690.0,116680.0,0.2043817]
[1754715944879,0.61886253,116690.0,116680.0,0.2043817]
[1754715945085,0.62286253,116690.0,116680.0,0.2043817]
[1754715946477,0.26206253,116690.0,116680.0,0.46660458]
[1754715946676,0.24767253,116690.0,116680.0,0.2043817]
[1754715946874,0.26206253,116690.0,116680.0,0.2043817]
[1754715947076,0.11587086,116690.0,116680.0,0.2043817]
[1754715947278,0.11787086,116690.0,116680.0,0.5651817]
[1754715947472,0.14768086,116690.0,116680.0,0.5651817]
[1754715947672,0.16412086,116690.0,116680.0,0.5651817]
[1754715947977,0.20542086,116690.0,116680.0,0.5651817]
[1754715948179,0.22081086,116690.0,116680.0,0.82740458]
[1754715948476,0.24258086,116690.0,116680.0,0.5651817]
[1754715948678,0.24258086,116690.0,116680.0,0.82740458]
[1754715948874,0.24258086,116690.0,116680.0,0.5651817]
[1754715950174,0.09172285,116690.0,116680.0,0.5651817]
[1754715950383,0.006,116690.0,116680.0,0.5651817]
[1754715950774,1e-07,116690.0,116680.0,0.5693817]
[1754715951072,0.39421,116740.0,116720.0,0.1354223]
[1754715951279,0.14214531,116740.0,116730.0,0.157835]
[1754715951473,0.33436293,116740.0,116730.0,0.171955]
[1754715951671,0.42386374,116740.0,116730.0,0.565145]
[1754715951882,0.30315374,116740.0,116730.0,0.78872788]
[1754715952077,0.20928901,116740.0,116730.0,0.565145]
[1754715952373,0.1910537,116740.0,116730.0,0.565145]
[1754715952573,0.16478935,116740.0,116730.0,0.565145]
[1754715952882,0.10050081,116740.0,116730.0,0.565145]
[1754715953074,0.02481,116770.0,116760.0,0.0856322]
[1754715953379,0.70211919,116770.0,116760.0,0.0856322]
[1754715953582,0.4309833,116770.0,116760.0,0.1656822]
[1754715953772,0.4309833,116770.0,116760.0,0.2043222]
[1754715954173,0.33188778,116770.0,116760.0,0.2043222]
[1754715954379,0.33188778,116770.0,116760.0,0.0856322]
[1754715954675,0.42552593,116770.0,116760.0,0.0856322]
[1754715954876,0.43772593,116770.0,116760.0,0.0856322]
[1754715955072,0.12491,116760.0,116750.0,0.0856387]
[1754715955272,0.50722367,116760.0,116750.0,0.0856387]
[1754715955474,0.12071,116750.0,116740.0,0.0856468]
[1754715955683,0.57047066,116750.0,116740.0,0.0856468]
[1754715955881,0.66977762,116750.0,116740.0,0.08577545]
[1754715956074,0.75963439,116750.0,116740.0,0.08577545]
[1754715956273,1.11169717,116750.0,116740.0,0.00012865]
[1754715956477,1.32078629,116750.0,116740.0,0.08577635]
[1754715956670,1.40642999,116750.0,116730.0,0.17131]
[1754715956881,0.10427,116730.0,116720.0,0.1713198]
[1754715957179,0.6018641,116730.0,116720.0,0.0856599]
[1754715957379,0.68752087,116730.0,116720.0,0.0856599]
[1754715957980,0.68752087,116730.0,116720.0,0.1180499]
[1754715958179,0.68752087,116730.0,116720.0,0.2043499]
[1754715958376,0.32672087,116730.0,116720.0,0.2043499]
[1754715958675,0.32672087,116730.0,116720.0,0.2053499]
[1754715958876,0.25715087,116730.0,116720.0,0.2053499]
[1754715959183,0.3052072,116730.0,116720.0,0.2053499]
[1754715959479,0.22783584,116730.0,116720.0,0.2053499]
[1754715960181,0.22783706,116730.0,116720.0,0.2073499]
[1754715960378,0.22783706,116730.0,116720.0,0.1353199]
[1754715960579,0.31787864,116730.0,116720.0,0.1858299]
[1754715960785,0.31787864,116730.0,116720.0,0.1838299]
[1754715960984,0.31787864,116730.0,116720.0,0.2073499]
[1754715961177,0.29640835,116730.0,116720.0,0.2133499]
[1754715961782,0.29640835,116730.0,116720.0,0.2073499]
[1754715961982,0.29640835,116730.0,116720.0,0.0936599]
[1754715962184,0.31788074,116730.0,116720.0,0.0936599]
[1754715962379,0.31788074,116730.0,116720.0,0.0906599]
[1754715962585,0.31788074,116730.0,116720.0,0.1230499]
[1754715963084,0.31788074,116730.0,116720.0,0.0906599]
[1754715963679,0.31788074,116730.0,116720.0,0.1707099]
[1754715963878,0.31788074,116730.0,116720.0,0.2093499]
[1754715964679,0.76433754,116730.0,116720.0,0.2093499]
[1754715964882,0.76433754,116730.0,116720.0,0.005]
[1754715965280,0.76433754,116730.0,116700.0,0.2043646]
[1754715965281,0.12071,116710.0,116700.0,0.2043646]
[1754715965481,0.58866556,116710.0,116700.0,0.1798446]
[1754715965777,0.5886655,116710.0,116700.0,0.2043646]
[1754715965979,0.77281827,116710.0,116700.0,0.1333346]
[1754715966179,0.68714677,116710.0,116700.0,0.1798446]
[1754715966381,0.68714677,116710.0,116700.0,0.2034846]
[1754715967582,0.32634677,116710.0,116700.0,0.2034846]
[1754715968183,0.32634677,116710.0,116700.0,0.5642846]
[1754715968686,0.1071555,116710.0,116700.0,0.5684846]
[1754715969387,0.08567144,116710.0,116700.0,0.5684846]
[1754715969597,0.10690062,116710.0,116700.0,0.5684846]
[1754715969883,0.02956865,116740.0,116730.0,0.0952668]
[1754715970087,0.02956865,116740.0,116730.0,0.5254268]
[1754715970088,0.10456633,116740.0,116730.0,0.5254268]
[1754715970285,0.07258633,116740.0,116730.0,0.5254268]
[1754715970588,0.21052246,116740.0,116730.0,0.5254268]
[1754715970891,0.20420478,116740.0,116730.0,0.5254268]
[1754715971790,0.15731478,116740.0,116730.0,0.5284268]
[1754715972294,0.11038478,116740.0,116730.0,0.5284268]
[1754715972789,0.00012865,116740.0,116730.0,0.5284268]
[1754715973294,0.02469865,116740.0,116730.0,0.5284268]
[1754715973992,0.00012865,116740.0,116730.0,0.5294268]
[1754715974295,0.0042,116750.0,116730.0,0.5667836]
[1754715974486,0.02877,116750.0,116740.0,0.5254203]
[1754715974688,0.08986411,116750.0,116740.0,0.5254203]
[1754715974895,0.02877,116750.0,116740.0,0.5254203]
[1754715976289,0.19333677,116750.0,116740.0,0.5254203]
[1754715976595,0.20824677,116750.0,116740.0,0.5254203]
[1754715977489,0.20824677,116750.0,116740.0,0.5264203]
[1754715979094,0.11442677,116750.0,116740.0,0.5264203]
[1754715979894,0.16205677,116750.0,116740.0,0.5264203]
[1754715980193,0.20824677,116750.0,116740.0,0.5264203]
[1754715980796,0.08985677,116750.0,116740.0,0.5264203]
[1754715980991,1e-07,116750.0,116740.0,0.5264203]
[1754715982305,1e-07,116750.0,116740.0,0.4781203]
[1754715983999,0.0245701,116760.0,116740.0,0.5637706]
[1754715984203,0.0245701,116760.0,116750.0,0.5254142]
[1754715984801,1e-07,116760.0,116750.0,0.4771142]
[1754715984995,0.07406972,116770.0,116760.0,0.0856367]
[1754715985202,0.09863972,116770.0,116760.0,0.1163067]
[1754715985403,0.18428915,116770.0,116760.0,0.1646067]
[1754715985594,0.23191915,116770.0,116760.0,0.1646067]
[1754715986007,0.11431943,116770.0,116760.0,0.5254067]
[1754715986198,0.07803561,116790.0,116760.0,0.5254067]
[1754715986199,0.02457,116790.0,116780.0,0.1162919]
[1754715986395,0.02457,116790.0,116780.0,0.5253919]
[1754715986599,0.12410775,116790.0,116780.0,0.5253919]
[1754715986797,0.3608,116820.0,116800.0,0.1712092]
[1754715986998,0.47919,116820.0,116810.0,0.1645707]
[1754715987305,0.65779887,116820.0,116810.0,0.1645707]
[1754715987499,0.66159887,116820.0,116810.0,0.1645707]
[1754715987696,0.74719657,116820.0,116810.0,0.0856004]
[1754715988406,0.77823655,116820.0,116810.0,0.0856004]
[1754715988608,0.78443655,116820.0,116810.0,0.0856004]
[1754715989402,0.69463885,116820.0,116810.0,0.0856004]
[1754715989606,0.69663885,116820.0,116810.0,0.0856004]
[1754715989907,0.76404521,116820.0,116810.0,0.1645704]
[1754715990310,0.73300523,116820.0,116810.0,0.1645704]
[1754715990612,0.71809523,116820.0,116810.0,0.1645704]
[1754715990807,0.73300523,116820.0,116810.0,0.1645704]
[1754715991011,0.37220523,116820.0,116810.0,0.1645704]
[1754715992614,0.72920523,116820.0,116810.0,0.1645704]
[1754715993413,0.05498824,116820.0,116810.0,0.9965784]
[1754715993613,0.0078,116820.0,116810.0,0.9965784]
[1754715993909,0.004,116820.0,116810.0,0.9965784]
[1754715994510,0.004,116820.0,116810.0,1.0007784]
[1754715994700,0.02457,116840.0,116830.0,0.1645558]
[1754715994903,0.02457,116850.0,116840.0,0.2501219]
[1754715995099,0.02457,116850.0,116840.0,0.6109219]
[1754715995312,0.02807,116850.0,116840.0,0.6109219]
[1754715995710,0.56478079,116850.0,116840.0,0.0951834]
[1754715995902,0.56478079,116850.0,116840.0,0.1199934]
[1754715996101,0.57042143,116850.0,116840.0,0.1645434]
[1754715996301,0.14736866,116850.0,116840.0,0.5253434]
[1754715996506,0.13171866,116850.0,116840.0,0.5253434]
[1754715996806,0.02155787,116850.0,116840.0,0.5253434]
[1754715997013,0.02155787,116850.0,116840.0,0.5295434]
[1754715997212,7e-08,116850.0,116840.0,0.5295434]
[1754715997415,0.3608,116870.0,116860.0,0.0855663]
[1754715997620,0.3845,116870.0,116860.0,0.1640163]
[1754715997826,0.44638346,116870.0,116860.0,0.1640163]
[1754715998114,0.11258346,116870.0,116860.0,0.1640163]
[1754715998306,0.56789346,116870.0,116860.0,0.0948863]
[1754715998507,0.75435406,116870.0,116860.0,0.0855663]
[1754715998814,0.21821,116860.0,116850.0,0.2567119]
[1754715999111,0.67356617,116860.0,116850.0,0.2567119]
[1754715999311,0.75914231,116860.0,116850.0,0.0855687]
[1754715999512,0.12241,116850.0,116840.0,0.0855815]
[1754715999716,0.57901,116850.0,116840.0,0.0855815]
[1754716000018,0.76026378,116850.0,116840.0,0.0855815]
[1754716000216,0.66026378,116850.0,116840.0,0.0855815]
[1754716000415,0.76026378,116850.0,116840.0,0.0855815]
[1754716001004,0.66026378,116850.0,116840.0,0.0855815]
[1754716001609,0.74583918,116850.0,116840.0,0.0855815]
[1754716001917,0.76026378,116850.0,116840.0,0.0605815]
[1754716002122,0.66026378,116850.0,116840.0,0.0605815]
[1754716002309,0.76026378,116850.0,116840.0,0.0605815]
[1754716002621,0.84583918,116850.0,116840.0,0.0625815]
[1754716002918,0.84583918,116850.0,116840.0,0.0375815]
[1754716003409,0.74583918,116850.0,116840.0,0.0375815]
[1754716003616,0.74583838,116850.0,116840.0,0.0375815]
[1754716003813,0.84583838,116850.0,116840.0,0.0375815]
[1754716004411,0.84583838,116850.0,116840.0,0.0355815]
[1754716004717,0.06182,116830.0,116820.0,0.0855957]
[1754716004910,0.1698276,116820.0,116810.0,0.0856]
[1754716005209,0.0958,116810.0,116800.0,0.2568366]
[1754716005419,0.47901,116810.0,116800.0,0.2568366]
[1754716005616,0.56997442,116810.0,116800.0,0.2568366]
[1754716005805,0.65557253,116810.0,116800.0,0.3535866]
[1754716006011,0.65557253,116810.0,116800.0,0.3388566]
[1754716006213,0.69588332,116810.0,116790.0,0.1098426]
[1754716006408,0.47901,116800.0,116790.0,0.0856126]
[1754716006612,0.11821,116790.0,116780.0,0.0856198]
[1754716006914,0.69772888,116790.0,116780.0,0.0856198]
[1754716007112,0.03743,116780.0,116770.0,0.0856313]
[1754716007420,0.52649931,116780.0,116770.0,0.0856313]
[1754716007617,0.61212674,116780.0,116770.0,0.0856313]
[1754716008318,0.51783743,116780.0,116770.0,0.1616313]